bitfinex/quotes_ETHUSD_20251124
["timestamp","ask_amount","ask_price","bid_price","bid_amount"]
[1763976365795,0.234,2796.5,2795.3,0.4645]
[1763976366115,7.65663025,2796.4,2795.3,0.4645]
[1763976366354,7.65663025,2796.4,2794.3,0.405504]
[1763976366355,0.90699264,2796.3,2794.7,0.4645]
[1763976366563,0.85636229,2796.2,2795.1,0.1828]
[1763976366778,1.34236229,2796.2,2795.1,0.1828]
[1763976367052,1.34236229,2796.2,2794.2,0.1828]
[1763976367053,0.90699264,2795.8,2794.2,0.6688]
[1763976367419,0.486,2795.7,2794.3,0.486]
[1763976367618,0.234,2795.6,2794.3,0.486]
[1763976368168,0.234,2795.5,2794.4,0.1]
[1763976368323,0.234,2795.4,2794.3,0.486]
[1763976368516,0.234,2795.6,2794.4,0.1]
[1763976368828,0.94211852,2796.0,2794.3,0.486]
[1763976368829,0.234,2795.5,2794.3,0.486]
[1763976369728,0.234,2795.4,2794.3,0.486]
[1763976370653,0.94211852,2796.0,2795.3,0.1883]
[1763976370863,0.72,2795.9,2794.3,0.486]
[1763976371153,1.2303466,2796.4,2794.5,0.505504]
[1763976371373,0.4852,2796.4,2794.4,0.94277849]
[1763976371523,0.234,2796.3,2794.5,0.891504]
[1763976371855,0.234,2796.3,2794.6,0.586]
[1763976372516,0.18857084,2796.2,2794.7,0.405504]
[1763976372808,0.234,2796.1,2794.9,0.1]
[1763976373399,0.90699264,2796.4,2795.0,0.486]
[1763976373571,0.234,2796.0,2795.1,0.1883]
[1763976374059,6.806,2796.5,2795.1,0.6743]
[1763976374396,0.72,2796.4,2795.1,0.6743]
[1763976374570,0.704,2796.3,2795.1,0.6743]
[1763976374770,0.90699264,2796.2,2794.7,0.486]
[1763976375093,0.9804658,2796.1,2794.7,0.486]
[1763976375296,1.4664658,2796.1,2794.7,0.486]
[1763976376000,0.9804658,2796.1,2794.7,0.486]
[1763976376299,1.40741164,2796.0,2794.7,0.486]
[1763976376657,0.4722,2795.9,2794.7,0.486]
[1763976376991,0.234,2795.8,2794.7,0.486]
[1763976377572,0.4722,2795.9,2794.7,0.486]
[1763976377772,0.234,2795.7,2794.7,0.486]
[1763976378264,0.234,2795.6,2794.7,0.486]
[1763976378592,1.2186658,2795.9,2794.7,0.486]
[1763976378593,0.234,2795.5,2794.7,0.486]
[1763976378969,0.234,2795.5,2794.6,0.001]
[1763976379493,0.9804658,2795.5,2794.6,0.001]
[1763976379698,0.234,2795.5,2794.6,0.001]
[1763976380097,0.124,2794.7,2794.6,0.001]
[1763976380399,0.234,2794.7,2794.6,0.001]
[1763976380757,2.31676148,2795.4,2794.6,0.001]
[1763976380758,0.74870286,2795.0,2794.6,0.001]
[1763976380958,1.6862717,2795.3,2794.6,0.001]
[1763976381162,1.3076105,2795.2,2794.6,0.001]
[1763976381394,0.22451793,2795.1,2794.6,0.001]
[1763976381613,2.67738174,2795.1,2794.6,0.001]
[1763976381908,0.74870286,2795.0,2794.6,0.001]
[1763976382109,1.22090286,2795.0,2794.6,0.001]
[1763976382405,0.0763,2794.7,2794.6,0.001]
[1763976382901,0.74870286,2794.8,2794.6,0.001]
[1763976383062,0.234,2794.7,2794.6,0.001]
[1763976384574,0.7241,2794.7,2794.6,0.001]
[1763976384975,0.7826,2794.7,2794.6,0.001]
[1763976385166,1.53157714,2794.7,2794.6,0.001]
[1763976385488,2.76401963,2794.7,2794.6,0.001]
[1763976385672,3.22487774,2794.7,2794.6,0.001]
[1763976385875,8.21738658,2794.7,2794.6,0.001]
[1763976386205,2.92807774,2794.7,2794.6,0.001]
[1763976386427,1.30842699,2794.7,2794.6,0.001]
[1763976386863,1.78992699,2794.7,2794.6,0.001]
[1763976387267,1.55182699,2794.7,2794.6,0.001]
[1763976387464,1.07442699,2794.7,2794.6,0.001]
[1763976387687,1.30842699,2794.7,2794.6,0.001]
[1763976388069,0.7839288,2794.7,2794.6,0.001]
[1763976388304,1.53265222,2794.7,2794.6,0.001]
[1763976388472,1.20745609,2794.7,2794.6,0.001]
[1763976388905,1.16088044,2795.1,2794.6,0.001]
[1763976389104,1.07427614,2795.0,2794.6,0.9638]
[1763976389407,0.234,2794.9,2794.6,0.9638]
[1763976389608,0.93636251,2795.3,2794.8,0.4861]
[1763976389773,1.07456454,2795.2,2794.6,0.4777]
[1763976390117,0.234,2795.1,2794.6,0.4777]
[1763976390274,0.42595446,2795.1,2794.6,0.001]
[1763976391206,1.22360988,2795.1,2794.6,0.001]
[1763976391372,0.98318206,2795.0,2794.6,0.001]
[1763976391574,1.07455464,2794.9,2794.6,0.001]
[1763976391804,0.32537258,2794.8,2794.6,0.4777]
[1763976392002,0.74918206,2794.9,2794.6,0.001]
[1763976392003,0.234,2794.7,2794.6,0.001]
[1763976392406,1.12831697,2795.1,2794.6,0.4871]
[1763976392407,0.19195446,2795.1,2794.6,0.4871]
[1763976392605,0.234,2794.7,2794.6,0.4871]
[1763976392910,1.37919264,2795.4,2794.6,0.4871]
[1763976392911,0.74926536,2795.1,2794.7,0.4767]
[1763976393107,0.234,2795.0,2794.7,0.4767]
[1763976393406,1.53256251,2795.9,2795.0,0.4861]
[1763976393611,2.19827042,2795.8,2795.0,0.4861]
[1763976393807,1.07495656,2795.7,2795.1,0.197]
[1763976394107,0.74945725,2795.7,2795.1,0.197]
[1763976394306,0.234,2795.6,2795.1,0.6737]
[1763976394483,0.234,2795.5,2795.2,0.4767]
[1763976394708,0.51422893,2796.0,2795.2,0.4767]
[1763976394902,0.358,2795.9,2795.2,0.4767]
[1763976395305,1.10660356,2795.9,2795.1,0.197]
[1763976395493,0.74940356,2795.8,2794.7,0.4767]
[1763976395694,1.07486263,2795.8,2794.7,0.4767]
[1763976395908,0.66262626,2795.7,2794.7,0.4767]
[1763976396191,2.21583371,2795.6,2794.6,0.001]
[1763976396389,1.98183371,2795.5,2794.6,0.001]
[1763976396596,1.07484107,2795.4,2794.6,0.001]
[1763976396827,1.07484107,2795.3,2794.6,0.001]
[1763976397029,0.80596787,2795.2,2794.6,0.001]
[1763976397194,0.74940356,2795.1,2794.6,0.001]
[1763976397628,0.234,2795.0,2794.6,0.001]
[1763976397927,0.98340356,2795.0,2794.6,0.001]
[1763976398131,0.234,2795.0,2794.6,0.001]
[1763976398347,0.32543006,2795.3,2794.6,0.001]
[1763976398646,0.20115492,2795.2,2794.6,0.001]
[1763976398796,1.21468498,2795.2,2794.6,0.001]
[1763976399100,0.74975667,2795.1,2794.6,0.001]
[1763976399508,0.20115492,2795.2,2794.6,0.001]
[1763976399708,0.4541,2795.1,2794.6,0.001]
[1763976400041,0.234,2795.0,2794.6,0.001]
[1763976400630,0.74975667,2795.1,2794.6,0.001]
[1763976400846,0.234,2795.0,2794.6,0.001]
[1763976401325,0.20115492,2795.2,2794.6,0.001]
[1763976401845,0.234,2795.1,2794.6,0.001]
[1763976402012,0.98388723,2795.1,2794.6,0.001]
[1763976402250,0.234,2795.0,2794.6,0.482]
[1763976402434,0.234,2795.0,2794.6,0.001]
[1763976403037,0.234,2795.0,2794.6,0.482]
[1763976403950,0.7500159,2795.3,2794.6,0.482]
[1763976404151,0.55880789,2795.2,2794.6,0.482]
[1763976404352,0.18433552,2795.4,2794.6,0.482]
[1763976404667,0.51016147,2795.4,2794.6,0.482]
[1763976405056,0.233,2795.3,2794.6,0.482]
[1763976405444,0.64452626,2795.7,2794.6,0.482]
[1763976405445,0.75071299,2795.4,2794.6,0.482]
[1763976405645,0.64452626,2795.7,2794.6,0.482]
[1763976405646,0.75071299,2795.7,2794.6,0.482]
[1763976405844,9.05748094,2796.3,2794.6,0.482]
[1763976405845,0.233,2795.6,2795.3,0.6586]
[1763976406277,0.233,2795.6,2795.5,0.4773]
[1763976406480,1.0770411,2796.1,2795.5,0.4773]
[1763976406641,1.80589089,2796.1,2795.5,0.9527]
[1763976406843,0.233,2796.0,2795.5,0.9527]
[1763976407134,0.233,2796.0,2795.6,0.4754]
[1763976407334,0.002,2796.3,2795.6,0.4754]
[1763976407647,0.002,2796.3,2794.6,0.001]
[1763976407648,0.1892,2795.7,2795.1,0.1976]
[1763976407956,0.233,2795.6,2795.1,0.1976]
[1763976408155,0.4821,2796.2,2795.1,0.673]
[1763976408156,0.124,2795.9,2795.1,0.673]
[1763976408371,0.233,2795.8,2795.2,0.4754]
[1763976408574,0.233,2795.8,2794.6,0.001]
[1763976408575,0.7151,2795.8,2794.7,0.4754]
[1763976408875,0.32578657,2795.7,2794.6,0.4764]
[1763976409049,2.69866101,2795.7,2794.6,0.4764]
[1763976409255,1.34643447,2795.6,2794.6,0.001]
[1763976409465,0.32578657,2795.5,2794.6,0.001]
[1763976409686,1.07656837,2795.5,2794.6,0.001]
[1763976410001,0.7507818,2795.5,2794.6,0.001]
[1763976410200,2.153,2795.3,2794.6,0.001]
[1763976410380,0.80789375,2795.4,2794.6,0.001]
[1763976410381,0.29608938,2795.2,2794.6,0.001]
[1763976410582,0.4821,2795.4,2794.6,0.001]
[1763976411276,0.32579685,2795.3,2794.6,0.001]
[1763976411479,0.233,2795.2,2794.6,0.001]
[1763976412303,0.7151,2795.2,2794.6,0.001]
[1763976412502,0.32577144,2795.1,2794.6,0.001]
[1763976412700,1.07641746,2795.1,2794.6,0.001]
[1763976412902,0.17915175,2795.0,2794.6,0.001]
[1763976413920,0.233,2795.2,2794.6,0.001]
[1763976414072,0.55878648,2795.2,2794.6,0.001]
[1763976414604,1.30940771,2795.2,2794.6,0.001]
[1763976414802,0.32578648,2795.1,2794.6,0.001]
[1763976415023,0.0664,2794.7,2794.6,0.001]
[1763976415309,0.2994,2794.7,2794.6,0.001]
[1763976416082,0.7774,2794.7,2794.6,0.001]
[1763976416306,2.12977152,2794.7,2794.6,0.001]
[1763976416510,13.31981677,2794.7,2794.6,0.001]
[1763976416708,4.48002216,2794.7,2794.6,0.001]
[1763976417113,11.91974477,2794.7,2794.6,0.001]
[1763976417321,23.98241177,2794.7,2794.6,0.001]
[1763976417617,23.98241177,2794.7,2794.5,0.001]
[1763976417618,5.49771364,2794.6,2794.5,0.001]
[1763976417923,8.69974559,2794.6,2794.5,0.001]
[1763976418094,7.39125259,2794.6,2794.5,0.001]
[1763976418299,7.75625259,2794.6,2794.5,0.001]
[1763976418683,8.37651459,2794.6,2794.5,0.001]
[1763976418884,8.31245859,2794.6,2794.5,0.001]
[1763976419085,6.56455912,2794.6,2794.5,0.001]
[1763976419292,9.53786112,2794.6,2794.5,0.001]
[1763976419524,8.22195412,2794.6,2794.5,0.001]
[1763976419709,8.45495412,2794.6,2794.5,0.001]
[1763976420110,5.80264412,2794.6,2794.5,0.001]
[1763976420310,6.51774412,2794.6,2794.5,0.001]
[1763976420619,3.82636012,2794.6,2794.5,0.001]
[1763976420819,9.95081712,2794.6,2794.5,0.001]
[1763976421023,8.86450912,2794.6,2793.3,0.4754]
[1763976421222,8.86450912,2794.6,2793.2,0.1828]
[1763976421223,0.90699264,2793.8,2793.2,0.1828]
[1763976421409,2.154258,2794.1,2793.3,0.4754]
[1763976421609,0.90699264,2794.2,2793.3,0.4754]
[1763976421919,0.233,2794.0,2793.2,0.1828]
[1763976422123,0.233,2793.9,2793.3,0.4754]
[1763976422488,0.233,2793.9,2793.2,0.1828]
[1763976422738,0.233,2793.9,2793.3,0.4754]
[1763976423087,0.233,2793.8,2793.3,0.4754]
[1763976423731,0.233,2793.7,2793.2,0.1828]
[1763976423935,0.233,2793.7,2792.6,0.1976]
[1763976424224,0.69610226,2793.7,2792.7,0.4754]
[1763976424386,0.233,2793.6,2792.7,0.4754]
[1763976424586,0.233,2793.6,2792.7,0.4254]
[1763976424986,0.233,2793.5,2792.7,0.4254]
[1763976425224,0.69610226,2793.7,2792.7,0.4254]
[1763976425225,0.233,2793.4,2792.7,0.4254]
[1763976425391,0.69610226,2793.7,2792.7,0.4254]
[1763976425593,0.233,2793.3,2792.7,0.4254]
[1763976425802,0.90699264,2793.8,2792.7,0.4254]
[1763976426009,0.99650153,2793.7,2793.2,0.4862]
[1763976426204,0.76350153,2793.7,2793.2,0.4862]
[1763976426403,0.233,2793.6,2792.6,0.1976]
[1763976426589,0.233,2793.5,2792.7,0.4754]
[1763976427021,0.76350153,2793.7,2793.4,0.4544]
[1763976427343,0.233,2793.6,2793.4,0.16167]
[1763976427545,0.90699264,2794.3,2793.4,0.65627]
[1763976427835,0.27607753,2794.7,2794.2,0.6192]
[1763976428042,0.6368,2794.9,2793.0,0.1648]
[1763976428043,0.233,2794.6,2794.1,0.1846]
[1763976428193,0.6368,2794.9,2794.1,0.1846]
[1763976428194,0.1818,2794.9,2794.1,0.1846]
[1763976428395,0.233,2794.8,2794.1,0.6792]
[1763976428694,6.72802261,2795.0,2794.1,0.6792]
[1763976429017,1.8127949,2794.9,2794.1,0.6792]
[1763976429195,2.2677949,2794.9,2794.1,0.1846]
[1763976429834,1.12780226,2794.9,2794.1,0.1846]
[1763976430007,0.233,2794.8,2794.1,0.1846]
[1763976430806,0.233,2794.8,2793.0,0.1648]
[1763976430807,0.688,2794.8,2793.7,0.4946]
[1763976430992,0.90699264,2794.5,2793.1,0.4946]
[1763976431589,0.233,2794.4,2793.1,0.4946]
[1763976433863,0.22677949,2794.7,2793.1,0.4946]
[1763976434046,0.68177949,2794.7,2793.1,0.4946]
[1763976434230,0.233,2794.6,2793.1,0.4946]
[1763976434425,0.233,2794.5,2793.1,0.5946]
[1763976434815,0.22677949,2794.7,2793.2,0.505504]
[1763976435011,0.002,2794.4,2793.3,0.1]
[1763976435215,0.002,2794.4,2794.3,0.639]
[1763976435449,0.235,2794.4,2794.3,0.639]
[1763976435618,0.235,2794.4,2794.1,0.1846]
[1763976436125,0.235,2794.4,2793.9,0.4946]
[1763976436126,0.69,2794.4,2793.5,0.4946]
[1763976436328,0.235,2794.4,2793.5,0.4946]
[1763976436813,0.235,2794.4,2794.3,0.4544]
[1763976437014,0.002,2794.4,2794.3,0.639]
[1763976437214,0.235,2794.4,2794.3,1.1336]
[1763976437534,0.002,2794.4,2794.3,1.1336]
[1763976437713,0.235,2794.4,2794.3,0.639]
[1763976437918,0.002,2794.4,2794.3,1.1336]
[1763976438116,0.235,2794.4,2794.3,1.1336]
[1763976438642,0.002,2794.4,2794.3,1.1336]
[1763976438855,0.235,2794.4,2794.3,1.1336]
[1763976439228,0.235,2794.4,2794.3,0.639]
[1763976440356,0.002,2794.4,2794.3,0.639]
[1763976440558,0.235,2794.4,2794.3,0.639]
[1763976441059,0.002,2794.4,2794.3,0.639]
[1763976441363,0.235,2794.4,2794.3,0.639]
[1763976441536,0.235,2794.4,2794.3,1.1336]
[1763976442061,0.002,2794.4,2794.3,1.1336]
[1763976442421,0.2342,2794.4,2794.3,1.1336]
[1763976443668,0.0012,2794.4,2794.3,1.1336]
[1763976443824,0.2342,2794.4,2794.3,1.1336]
[1763976444028,0.0012,2794.4,2794.3,1.1336]
[1763976444259,0.2342,2794.4,2794.3,1.1336]
[1763976444969,0.2342,2794.4,2794.3,0.639]
[1763976444970,0.0012,2794.4,2794.3,0.639]
[1763976445135,0.0012,2794.4,2794.3,1.1336]
[1763976445540,0.2342,2794.4,2794.3,1.1336]
[1763976445737,0.2342,2794.4,2794.3,0.639]
[1763976445935,0.2342,2794.4,2794.3,1.1336]
[1763976446137,0.0012,2794.4,2794.3,1.1336]
[1763976446466,0.0012,2794.4,2794.3,0.4544]
[1763976446467,0.2342,2794.4,2794.3,0.4544]
[1763976447407,0.2342,2794.4,2793.0,0.1648]
[1763976447408,1.0703,2794.4,2793.4,0.4946]
[1763976447607,0.43072926,2794.3,2793.4,0.4946]
[1763976447921,0.233,2794.3,2793.4,0.4946]
[1763976448127,0.0012,2794.4,2793.4,0.4946]
[1763976448327,0.233,2794.2,2793.4,0.4946]
[1763976449207,0.0012,2794.4,2794.1,0.639]
[1763976449410,0.0012,2794.4,2793.4,0.4946]
[1763976449722,0.233,2794.3,2793.4,0.4946]
[1763976449920,0.0012,2794.4,2794.3,0.4544]
[1763976450121,0.2342,2794.4,2793.4,0.4946]
[1763976450492,0.6892,2794.4,2793.4,0.4946]
[1763976452109,0.233,2794.3,2793.4,0.4946]
[1763976454124,0.233,2794.2,2793.4,0.4946]
[1763976454353,0.233,2794.2,2793.2,0.4946]
[1763976455209,0.233,2794.1,2793.2,0.4946]
[1763976455609,0.688,2794.1,2793.1,0.4946]
[1763976456469,0.455,2794.0,2793.1,0.4946]
[1763976456842,0.1905,2793.9,2793.1,0.4946]
[1763976457265,0.1905,2793.9,2793.0,0.1648]
[1763976457266,0.6724,2793.9,2793.0,0.1648]
[1763976457425,0.6724,2793.9,2792.6,0.604104]
[1763976457426,0.1905,2793.9,2793.1,0.6648]
[1763976457629,0.4819,2794.1,2793.8,0.4862]
[1763976457630,0.75044848,2794.1,2793.8,0.4862]
[1763976457863,6.32,2794.3,2793.8,0.4862]
[1763976457864,0.233,2794.0,2793.8,0.4862]
[1763976458072,0.233,2794.0,2793.2,0.4803]
[1763976458073,0.0012,2794.4,2794.2,0.6707]
[1763976458383,0.0012,2794.4,2794.3,0.4862]
[1763976458690,0.0012,2794.4,2794.3,0.9665]
[1763976458691,0.2342,2794.4,2794.3,0.9665]
[1763976458905,0.0012,2794.4,2794.3,0.9665]
[1763976459034,0.233,2795.7,2794.4,0.505504]
[1763976459386,0.233,2795.7,2794.9,0.4862]
[1763976459738,0.002,2795.9,2795.0,0.405504]
[1763976460084,0.002,2795.9,2795.8,0.6707]
[1763976460435,0.002,2795.9,2795.8,1.151]
[1763976460782,0.002,2795.9,2795.8,0.6707]
[1763976461147,0.002,2795.9,2795.6,0.1845]
[1763976461586,0.235,2795.9,2795.4,0.1845]
[1763976462099,0.8267,2795.9,2795.2,0.1845]
[1763976462244,0.3448,2795.9,2795.0,0.1845]
[1763976462449,0.4819,2795.8,2795.0,0.1845]
[1763976462879,0.4819,2795.8,2795.0,0.6648]
[1763976463145,0.002,2795.9,2795.0,0.6648]
[1763976463349,0.002,2795.9,2795.1,0.4803]
[1763976463550,0.233,2795.8,2795.1,0.4803]
[1763976463794,0.002,2795.9,2795.1,0.4803]
[1763976463993,0.002,2795.9,2795.8,0.4862]
[1763976464591,0.002,2795.9,2795.8,0.9665]
[1763976465492,0.002,2795.9,2795.8,1.372004]
[1763976465694,0.002,2796.3,2795.9,0.405504]
[1763976465895,0.002,2796.3,2796.2,0.6707]
[1763976466280,0.0012,2796.3,2796.2,1.1493]
[1763976466799,0.0012,2796.3,2796.2,1.2493]
[1763976467254,0.0012,2796.3,2796.2,1.554804]
[1763976467551,0.0012,2796.3,2796.2,1.654804]
[1763976467758,0.0012,2796.3,2796.2,1.554804]
[1763976468227,0.0012,2796.3,2796.2,1.1493]
[1763976469150,0.0012,2796.3,2796.2,0.6707]
[1763976469314,0.0012,2796.3,2796.2,1.1493]
[1763976470842,0.0012,2796.3,2796.2,0.4754]
[1763976471051,0.0012,2796.3,2796.2,0.954]
[1763976471452,0.0012,2796.3,2795.9,0.1958]
[1763976472057,0.0012,2796.3,2795.9,0.6744]
[1763976472362,0.0012,2796.3,2795.9,0.1958]
[1763976472868,0.0012,2796.3,2795.9,0.6744]
[1763976473231,0.0012,2796.3,2795.9,0.1958]
[1763976473630,0.0012,2796.3,2795.9,0.6744]
[1763976473934,0.0012,2796.3,2796.2,0.4754]
[1763976474365,0.0012,2796.3,2796.2,0.954]
[1763976474551,0.0012,2796.3,2796.2,0.4754]
[1763976474886,0.0012,2796.3,2796.2,1.359504]
[1763976475645,0.0012,2796.3,2796.2,0.954]
[1763976476572,0.0012,2796.3,2796.2,1.359504]
[1763976476944,0.0012,2796.3,2796.2,1.459504]
[1763976477537,0.0012,2796.3,2796.2,1.359504]
[1763976477738,0.0012,2796.3,2796.2,1.459504]
[1763976477933,0.0012,2796.3,2796.2,1.359504]
[1763976478345,0.0012,2796.3,2796.2,1.459504]
[1763976479645,0.002,2796.5,2796.3,0.880904]
[1763976479844,0.002,2796.5,2796.4,2.32670122]
[1763976480271,0.002,2796.5,2796.4,1.359504]
[1763976480477,0.002,2796.5,2796.1,0.4786]
[1763976480640,0.002,2796.5,2796.4,0.4754]
[1763976480967,0.002,2796.5,2796.1,0.4786]
[1763976481335,0.4912,2796.5,2795.6,0.1958]
[1763976481532,0.3522,2796.2,2795.6,0.1958]
[1763976482748,0.3522,2796.2,2795.0,0.1845]
[1763976482749,0.84,2796.2,2795.0,0.1845]
[1763976483068,0.84,2796.2,2795.0,0.6631]
[1763976483369,0.4878,2796.1,2795.0,0.1845]
[1763976483866,0.4878,2796.1,2794.5,0.4786]
[1763976484075,0.233,2796.0,2794.5,0.4786]
[1763976484258,0.233,2796.0,2794.5,0.5786]
[1763976484578,0.002,2796.5,2795.9,0.6712]
[1763976484736,0.002,2796.5,2796.4,0.4754]
[1763976484967,0.002,2796.5,2796.4,0.954]
[1763976485981,0.002,2796.5,2796.4,1.359504]
[1763976486205,0.002,2796.5,2796.4,1.459504]
[1763976486401,0.002,2796.5,2796.4,0.954]
[1763976487605,0.002,2796.5,2796.4,1.359504]
[1763976488077,0.002,2796.5,2796.4,5.07129057]
[1763976488279,0.002,2796.5,2796.4,3.07733791]
[1763976488479,0.002,2796.5,2796.4,6.61760396]
[1763976488722,0.6581,2798.1,2796.5,0.970604]
[1763976488914,0.6581,2798.1,2797.0,0.405504]
[1763976489224,0.6581,2798.1,2797.1,0.129]
[1763976489225,0.1905,2798.1,2797.1,0.129]
[1763976489372,0.4676,2798.0,2797.1,0.129]
[1763976489572,0.4676,2798.0,2796.9,0.405504]
[1763976489880,0.002,2797.1,2796.9,0.405504]
[1763976490082,0.0012,2797.1,2796.9,0.405504]
[1763976490385,0.0012,2797.1,2796.9,0.882804]
[1763976490587,0.0012,2797.1,2797.0,0.405504]
[1763976491174,0.0012,2797.1,2797.0,0.870604]
[1763976491393,0.0012,2797.1,2797.0,0.405504]
[1763976491606,0.0012,2797.1,2797.0,0.870604]
[1763976491975,0.0012,2797.1,2797.0,1.347904]
[1763976492215,0.0012,2797.1,2797.0,10.0512283]
[1763976492391,0.0012,2797.1,2797.0,2.5803863]
[1763976492619,0.0012,2797.1,2797.0,1.67339366]
[1763976492932,0.1098,2798.6,2797.1,0.405504]
[1763976493101,0.1098,2798.6,2797.7,0.405504]
[1763976493307,0.1098,2798.6,2797.7,0.505504]
[1763976493506,0.1098,2798.6,2797.9,0.405504]
[1763976493940,0.002,2798.7,2797.9,0.4773]
[1763976494142,0.002,2798.7,2798.0,0.505504]
[1763976494447,0.002,2798.7,2798.2,0.405504]
[1763976494642,0.002,2798.7,2798.2,0.882804]
[1763976494843,0.002,2798.7,2798.2,0.4773]
[1763976495030,0.002,2798.7,2798.3,0.405504]
[1763976495221,0.4696,2798.7,2798.2,0.405504]
[1763976495417,0.002,2798.7,2798.2,0.405504]
[1763976495917,0.4676,2798.6,2797.8,0.1854]
[1763976496117,0.4676,2798.6,2797.9,0.405504]
[1763976497049,0.002,2798.7,2797.9,0.405504]
[1763976497218,0.002,2798.7,2798.1,0.405504]
[1763976497407,0.4696,2798.7,2798.1,0.405504]
[1763976497815,0.002,2798.7,2798.1,0.405504]
[1763976498010,0.4676,2798.6,2797.9,0.405504]
[1763976498221,0.002,2798.7,2797.9,0.405504]
[1763976498425,0.4696,2798.7,2797.9,0.405504]
[1763976499315,0.002,2798.7,2798.1,0.405504]
[1763976499610,0.002,2798.7,2798.0,0.405504]
[1763976499815,0.002,2798.7,2798.2,0.405504]
[1763976500274,0.4696,2798.7,2798.2,0.405504]
[1763976500422,0.4696,2798.7,2797.8,0.6627]
[1763976500622,0.4696,2798.7,2797.9,0.405504]
[1763976501427,0.4696,2798.7,2797.9,0.882804]
[1763976501626,0.002,2798.7,2797.9,0.882804]
[1763976501822,0.002,2798.7,2798.1,0.405504]
[1763976502048,0.002,2798.7,2798.1,0.882804]
[1763976502630,0.002,2798.7,2798.1,0.405504]
[1763976504070,0.4696,2798.7,2798.1,0.405504]
[1763976504430,0.4696,2798.7,2797.8,0.1854]
[1763976504640,0.4696,2798.7,2797.9,0.405504]
[1763976505625,0.4696,2798.7,2797.9,0.982804]
[1763976505825,0.4696,2798.7,2798.1,0.405504]
[1763976505826,0.002,2798.7,2798.1,0.405504]
[1763976506029,0.002,2798.7,2798.1,0.505504]
[1763976506230,0.002,2798.7,2798.1,0.882804]
[1763976506449,0.002,2798.7,2798.1,0.405504]
[1763976507793,0.4696,2798.7,2798.1,0.405504]
[1763976508291,0.4696,2798.7,2797.9,0.405504]
[1763976508585,0.002,2798.7,2797.9,0.882804]
[1763976508791,0.002,2798.7,2797.9,0.982804]
[1763976508990,0.002,2798.7,2798.1,0.405504]
[1763976509193,0.002,2798.7,2798.6,0.870604]
[1763976509953,0.002,2798.7,2798.4,0.4773]
[1763976510190,0.002,2798.7,2797.8,7.35859421]
[1763976510191,0.2849,2798.5,2797.8,0.1854]
[1763976510893,0.1923,2797.9,2797.0,0.001]
[1763976511191,0.2867,2797.8,2797.0,0.4783]
[1763976511356,0.1923,2797.9,2797.1,0.4773]
[1763976511561,0.6599,2797.9,2797.1,0.4773]
[1763976511893,0.1923,2798.3,2797.2,0.405504]
[1763976512093,0.1923,2798.3,2797.6,0.405504]
[1763976512294,0.002,2798.7,2798.2,0.6505]
[1763976512605,0.002,2798.7,2798.6,0.870604]
[1763976512784,0.002,2798.7,2798.2,0.1854]
[1763976513103,0.002,2798.7,2798.3,0.405504]
[1763976513267,0.002,2798.7,2798.6,0.4651]
[1763976513459,0.002,2798.7,2798.6,0.9424]
[1763976513658,0.002,2798.7,2798.6,1.347904]
[1763976513895,0.0012,2798.7,2798.6,1.447904]
[1763976514092,0.0012,2798.7,2798.6,1.347904]
[1763976514662,0.0012,2798.7,2798.2,0.1854]
[1763976514663,0.0012,2798.7,2798.3,0.405504]
[1763976515713,0.4534,2798.4,2797.4,0.4773]
[1763976515915,0.4688,2798.7,2797.4,0.4773]
[1763976516114,0.4676,2798.6,2797.4,0.4773]
[1763976516578,0.4676,2798.6,2797.6,0.1]
[1763976516783,0.4676,2798.6,2797.5,0.1]
[1763976516984,0.4676,2798.6,2797.6,0.405504]
[1763976517412,0.4676,2798.6,2797.5,0.505504]
[1763976517614,0.4676,2798.6,2797.5,0.405504]
[1763976517812,0.4676,2798.6,2797.1,0.4992]
[1763976518016,0.4676,2798.6,2797.3,0.505504]
[1763976518215,0.4676,2798.6,2797.5,0.405504]
[1763976518807,0.4676,2798.6,2797.5,0.505504]
[1763976519142,4.88785999,2800.3,2797.5,0.505504]
[1763976519143,1.88365069,2800.6,2799.3,0.405504]
[1763976519284,0.4986,2800.2,2799.3,0.405504]
[1763976519486,0.4986,2800.2,2798.5,7.36689421]
[1763976519487,0.1873,2799.4,2798.5,0.1937]
[1763976519682,0.1873,2799.4,2798.5,0.2937]
[1763976519985,0.4986,2799.3,2798.5,0.1937]
[1763976520723,0.1873,2799.4,2798.5,0.2937]
[1763976520888,0.1873,2799.4,2798.7,0.1]
[1763976521088,0.6859,2799.4,2798.7,0.1]
[1763976521422,0.6859,2799.4,2798.5,0.505504]
[1763976521787,0.1873,2799.4,2798.7,0.405504]
[1763976521987,0.1873,2799.4,2799.0,0.1]
[1763976522297,0.1873,2799.4,2798.5,0.405504]
[1763976522503,0.1873,2799.6,2799.0,0.1]
[1763976522712,0.4986,2799.8,2799.0,0.1]
[1763976523247,0.4986,2799.8,2798.7,3.97851562]
[1763976523248,0.4986,2799.7,2798.7,0.405504]